Cogmind - Beta 16.1 @@@ ROGUE MODE // 2026.02.15 @ 13:18:58 Player: Edirash Result: Destroyed by G-34 Mercenary with Small Laser Performance ------------- Evolutions (1) 500 Regions Visited (3) 600 Robots Destroyed (20) 100 Value Destroyed (593) 593 Prototype IDs (2) 40 Alien Tech Used (0) 0 Bonus (0) 0 TOTAL SCORE: 1833 Bonus ------- None Cogmind --------- Core Integrity 0/400 Matter 295/300 Energy 122/125 System Corruption 0% Temperature Cool (62) Movement Walking (120) Location -9/Mines Parts ------- > --- POWER (1) -------- Light Ion Engine > --- PROPULSION (4) --- Aluminum Leg Aluminum Leg Aluminum Leg > --- UTILITY (2) ------ Medium Storage Unit Structural Scanner > --- WEAPON (2) ------- Beam Rifle > --- INVENTORY (10) --- Light Ion Engine Light Ion Engine Light Nuclear Core Aluminum Leg Medium Storage Unit Signal Interpreter Utility Shielding EM Pulse Gun Particle Gun Peak State ------------ > --- POWER ------------ Light Ion Engine > --- PROPULSION ------- Aluminum Leg Aluminum Leg Aluminum Leg Aluminum Leg > --- UTILITY ---------- Medium Storage Unit Structural Scanner > --- WEAPON ----------- Beam Rifle Plasma Cutter > --- INVENTORY -------- Light Ion Engine Light Ion Engine Light Nuclear Core Aluminum Leg Medium Storage Unit Signal Interpreter Utility Shielding EM Pulse Gun Particle Gun [Rating: 12] Favorites ----------- Power Light Ion Engine Engine Light Ion Engine Power Core Light Nuclear Core Propulsion Aluminum Leg Leg Aluminum Leg Utility Structural Scanner Device Structural Scanner Storage Medium Storage Unit Processor Signal Interpreter Weapon Light Assault Rifle Energy Gun EM Pulse Gun Ballistic Gun Light Assault Rifle Launcher Grenade Launcher Special Weapon Plasma Cutter Build | -11 -10 -9 -9 ------- Run | Yrd Mat Mat Min Slots Evolved 2 | . . 2 . Power . | . . . . Propulsion 2 | . . 2 . Utility . | . . . . Weapon . | . . . . Parts Attached 27 | 6 6 14 1 Power 3 | 1 1 1 . Engine 2 | 1 . 1 . Core 1 | . 1 . . Reactor . | . . . . Propulsion 11 | 2 1 7 1 Treads . | . . . . Leg 11 | 2 1 7 1 Wheel . | . . . . Hover . | . . . . Flight . | . . . . Utility 5 | 1 3 1 . Device 1 | . 1 . . Storage 3 | 1 1 1 . Processor 1 | . 1 . . Hackware . | . . . . Protection . | . . . . Artifact . | . . . . Weapon 8 | 2 1 5 . Energy Gun 3 | . . 3 . Energy Cannon . | . . . . Ballistic Gun 3 | 2 1 . . Ballistic Cannon . | . . . . Launcher 1 | . . 1 . Special Weapon 1 | . . 1 . Impact Weapon . | . . . . Slashing Weapon . | . . . . Piercing Weapon . | . . . . Special Melee Weapon . | . . . . Unidentified Prototypes . | . . . . Parts Lost 12 | . . 11 1 Power 1 | . . 1 . Propulsion 6 | . . 5 1 Utility . | . . . . Weapon 5 | . . 5 . Highest Loss Streak 6 | . . 6 3 To Critical Strikes . | . . . . Average Backups 6 | 1 5 7 9 Power 1 | . 1 2 3 Propulsion . | . . . 1 Utility 2 | . 1 3 3 Weapon 1 | 1 2 1 2 Tool/Special . | . . . . Unused Backups 7 | . . 1 6 Power 3 | . . . 3 Propulsion 1 | . . . 1 Utility 3 | . . 1 2 Weapon . | . . . . Tool/Special . | . . . . Average Slot Usage (%) 94 | . 98 90 88 Engine 10 | . 12 8 11 Core 1 | . 1 . . Leg 32 | . 27 38 44 Device 9 | . 7 11 11 Storage 12 | . 14 11 11 Processor 3 | . 5 . . Energy Gun 5 | . . 12 11 Ballistic Gun 16 | . 28 3 . Special Weapon 1 | . . 3 . Peak Build Rating 12 | 6 10 12 10 Average Rating 8 | 4 7 9 9 On Entrance 6 | . 6 10 9 Avg Prop Armor Cover (%) . | . . . . Naked Turns . | . . . . Heaviest Build 20 | 10 18 20 . Greatest Support 40 | 20 20 40 . Greatest Overweight (x) 2 | 2 . 1 . Average Overweight (x) . | . . . . Largest Inventory Capacity 10 | 8 10 10 10 Average Capacity 9 | 7 8 10 10 Most Carried 10 | 3 10 10 9 Average Carried 6 | 1 5 7 9 Final Capacity 10 | 8 10 10 10 Final Carried 10 | 2 10 10 9 Class Distribution -------------------- 65% | Mutant 34% | Scavenger-Mutant Dominant Class ---------------- Mutant | -10/Materials Scavenger-Mutant | -9/Materials Scavenger-Mutant | -9/Mines Resources | -11 -10 -9 -9 ----------- Run | Yrd Mat Mat Min Matter Collected 600 | 222 150 228 . Remotely . | . . . . Salvage Created 815 | . 133 635 47 Parts 42 | . 12 27 3 Haulers Intercepted . | . . . . Recyclers Shooed . | . . . . Parts Field Recycled . | . . . . Retrieved Matter . | . . . . Parts Self-Destructed . | . . . . Prevented . | . . . . Parts Restored . | . . . . Kills | -11 -10 -9 -9 ------- Run | Yrd Mat Mat Min Combat Hostiles Destroyed 17 | . 5 11 1 Guns 14 | . 5 8 1 Cannons 1 | . . 1 . AOE 2 | . . 2 . Classes Destroyed 6 | . 2 4 . Worker 1 | . . 1 . Recycler 2 | . . 2 . Swarmer 3 | . 3 . . Grunt 11 | . 2 8 1 Duelist 1 | . . 1 . Sentry 2 | . . 2 . Best Kill Streak 4 | . 3 4 1 Combat Bots Only 3 | . 3 2 1 Max Kills in Single Turn 1 | . 1 1 1 Gunslinging . | . . . . Exploded 1 | . . 1 . Melee . | . . . . Uniques/NPCs Destroyed . | . . . . Combat | -11 -10 -9 -9 -------- Run | Yrd Mat Mat Min Hostile Shots Fired 173 | . 39 127 7 Missed 53 | . 16 34 3 Hits 120 | . 23 93 4 Melee 12 | . . 12 . Projectile 108 | . 23 81 4 Critical Strikes 3 | . . 3 . Damage Taken 1810 | . 248 1516 46 Core 458 | . 51 385 22 Absorbed by Shields . | . . . . Regen/Repaired (Parts) 42 | . 42 . . Core Remaining (%) 89 | 100 79 . . Volleys Fired 92 | . 21 67 4 Largest 2 | . 2 2 1 Hottest 105 | . 40 105 56 Shots Fired 130 | . 42 84 4 Gun 120 | . 42 74 4 Cannon . | . . . . Launcher 6 | . . 6 . Special 4 | . . 4 . Kinetic 85 | . 42 43 . Thermal 27 | . . 23 4 Explosive 6 | . . 6 . Electromagnetic 12 | . . 12 . Robot Hit Streak 8 | . 4 8 5 Robot Miss Streak 8 | . 4 8 . Penetration Max . | . . . . Secondary Targets 1 | . 1 . . Max Gunslinging Chain 1 | . 1 . . Shots Hit Robots 74 | . 20 50 4 Core Hits 42 | . 11 29 2 Critical Kills . | . . . . Critical Parts Destroyed . | . . . . Critical Strikes 1 | . . 1 . Burn 1 | . . 1 . Melee Attacks . | . . . . Impact . | . . . . Slashing . | . . . . Piercing . | . . . . Sneak Attacks . | . . . . Combat Hostiles . | . . . . Follow-up Attacks . | . . . . Damage Inflicted 1177 | . 168 951 58 Guns 777 | . 168 551 58 Cannons . | . . . . Explosions 358 | . . 358 . Melee . | . . . . Ramming . | . . . . Kinetic 401 | . 168 233 . Thermal 296 | . . 238 58 Explosive 358 | . . 358 . Electromagnetic 122 | . . 122 . Impact . | . . . . Slashing . | . . . . Piercing . | . . . . Highest Corruption . | . . . . Average Corruption . | . . . . Corruption Purged . | . . . . Corruption Blocked . | . . . . Overload Shots . | . . . . Overflow Damage 7 | . . 7 . Projectiles . | . . . . Explosions 7 | . . 7 . Melee . | . . . . Knockbacks . | . . . . Impact . | . . . . Kinetic . | . . . . Secondary . | . . . . Self-Inflicted Damage 75 | . . 75 . Shots 3 | . . 3 . Rammed . | . . . . Targets Rammed . | . . . . Kicked . | . . . . Crushed . | . . . . Highest Temperature 162 | . 18 162 56 Average Temperature 41 | . 11 45 40 Received Heat Transfer 663 | . 90 546 27 Siege Activations . | . . . . Martial Activations . | . . . . Shielding Activations . | . . . . Robots Disrupted . | . . . . Combat Hostiles . | . . . . Robots Corrupted . | . . . . Combat Hostiles . | . . . . Parts Fried . | . . . . Impact Corruptions . | . . . . Robots Melted . | . . . . Combat Hostiles . | . . . . Parts Melted . | . . . . Heat Transferred 851 | . . 703 148 Parts Sabotaged . | . . . . Parts Stolen . | . . . . Parts Stripped . | . . . . Power Chain Reactions . | . . . . Alert | -11 -10 -9 -9 ------- Run | Yrd Mat Mat Min Maximum Alert Level . | . . . . Low Security (%) 100 | 100 100 100 100 Level 1 . | . . . . Level 2 . | . . . . Level 3 . | . . . . Level 4 . | . . . . Level 5 . | . . . . High Security . | . . . . Max Security . | . . . . Peak Influence 75 | . 75 64 30 Initial 4 | . . 4 4 Average 20 | . 13 29 19 Influence Increases 525 | . 148 347 30 Destroy 0b10 Robot/C 340 | . 100 220 20 Destroy 0b10 Robot/NC 15 | . . 15 . Destroy Leader 80 | . 20 50 10 Successful Hack 23 | . 13 10 . Destroy Structure 37 | . . 37 . Lose Combat Pursuer 30 | . 15 15 . Influence Decreases 495 | . 136 348 11 Entered New Map 15 | . . 8 7 Time Decay 386 | . 136 250 . Lost Part 94 | . . 90 4 Squads Dispatched 1 | . . 1 . Investigation . | . . . . Extermination . | . . . . Reinforcement 1 | . . 1 . Assault . | . . . . Garrison . | . . . . Intercept . | . . . . Searches Triggered . | . . . . Construction Impeded . | . . . . Haulers Reinforced . | . . . . Active Scanning Responses . | . . . . Cargo Convoy Interrupts . | . . . . Stealth | -11 -10 -9 -9 --------- Run | Yrd Mat Mat Min Distress Signals 1 | . . 1 . Communications Jammed . | . . . . Distress Signals . | . . . . Times Spotted 27 | . 7 18 2 Peak Tracking Total 4 | . 3 4 2 Tactical Retreats 2 | . 1 1 . Traps | -11 -10 -9 -9 ------- Run | Yrd Mat Mat Min Traps Triggered . | . . . . Indirectly . | . . . . Trap Hack Attempts . | . . . . Triggered . | . . . . Disarmed . | . . . . Reprogrammed . | . . . . Reused . | . . . . Traps Extracted . | . . . . Installed . | . . . . Triggered . | . . . . Machines | -11 -10 -9 -9 ---------- Run | Yrd Mat Mat Min Machines Disabled . | . . . . Max in Single Turn . | . . . . Machines Repaired . | . . . . Machines Dismantled . | . . . . Machines Sabotaged . | . . . . Overloaded Fab Kills . | . . . . Hacking | -11 -10 -9 -9 --------- Run | Yrd Mat Mat Min Machines Accessed 10 | . 6 4 . Terminals 7 | . 4 3 . Fabricators . | . . . . Repair Stations 1 | . 1 . . Recycling Units 1 | . 1 . . Scanalyzers 1 | . . 1 . Garrison Access . | . . . . Total Hacks 23 | . 11 12 . Successful 13 | . 9 4 . Failed 10 | . 2 8 . Catastrophic . | . . . . Database Lockouts . | . . . . Manual 1 | . . 1 . Terminals 17 | . 8 9 . Fabricators . | . . . . Repair Stations 2 | . 2 . . Recycling Units 1 | . 1 . . Scanalyzers 3 | . . 3 . Garrison Access . | . . . . Terminal Hacks 9 | . 6 3 . Record 2 | . . 2 . Prototype ID Bank 1 | . 1 . . Alert Level 1 | . . 1 . Locate Traps 1 | . 1 . . Maintenance Status 1 | . 1 . . Reinforcement Status 1 | . 1 . . Registered Components 1 | . 1 . . Zone Layout 1 | . 1 . . Fabricator Hacks . | . . . . Repair Station Hacks 2 | . 2 . . Scan Component 1 | . 1 . . Repair 1 | . 1 . . Recycling Unit Hacks 1 | . 1 . . Report Inventory 1 | . 1 . . Scanalyzer 1 | . . 1 . Retrieve Study 1 | . . 1 . Garrison Access Hacks . | . . . . Unauthorized Hacks . | . . . . Terminals . | . . . . Fabricators . | . . . . Repair Stations . | . . . . Recycling Units . | . . . . Scanalyzers . | . . . . Garrison Access . | . . . . Data Cores Recovered . | . . . . Used . | . . . . Hacking Detections 6 | . 2 4 . Full Trace Events 1 | . . 1 . Feedback Events . | . . . . Feedback Blocked . | . . . . Robot Schematics Acquired . | . . . . Robots Built . | . . . . Authchips . | . . . . Time . | . . . . Total Robot Build Rating . | . . . . Part Schematics Acquired . | . . . . Parts Built . | . . . . Authchips . | . . . . Time . | . . . . Total Part Build Rating . | . . . . Part Studies Acquired 1 | . . 1 . Parts Repaired 1 | . 1 . . Time 26 | . 26 . . Parts Recycled . | . . . . Recycled Matter . | . . . . Retrieved Matter . | . . . . Retrieved Components . | . . . . Parts Scanalyzed . | . . . . Part Schematics Acquired . | . . . . Parts Damaged . | . . . . Bothacking | -11 -10 -9 -9 ------------ Run | Yrd Mat Mat Min Used RIF Installer . | . . . . Robots Hacked . | . . . . Non-combat . | . . . . Combat . | . . . . Robot Hacks Applied . | . . . . Relay Couplers Released . | . . . . Fabnet Peak Effective % . | . . . . Robots Rewired . | . . . . Allies Hacked . | . . . . Hacks Repelled . | . . . . Allies | -11 -10 -9 -9 -------- Run | Yrd Mat Mat Min Total Allies . | . . . . Largest Group . | . . . . Highest-Rated Group . | . . . . Highest-Rated Ally . | . . . . Total Orders . | . . . . Ally Attacks . | . . . . Total Damage . | . . . . Kills . | . . . . Allies Corrupted . | . . . . Allies Melted . | . . . . Intel | -11 -10 -9 -9 ------- Run | Yrd Mat Mat Min Active Infowar (turns) 937 | . 364 565 8 Structural 937 | . 364 565 8 Robot Analysis Total . | . . . . Derelict Logs Recovered . | . . . . Drone Launches . | . . . . Drone Recoveries . | . . . . Exploration | -11 -10 -9 -9 ------------- Run | Yrd Mat Mat Min Turns Passed 1288 | 55 660 565 8 Spaces Moved 817 | 38 466 313 . Core 8 | 8 . . . Treads . | . . . . Legs 809 | 30 466 313 . Wheels . | . . . . Hover . | . . . . Flight . | . . . . Fastest Speed 50 | 50 120 120 . Average Speed 120 | 115 120 121 . Slowest Speed 190 | 150 120 190 . Overloaded Moves . | . . . . Propulsion Burnouts . | . . . . Robots Hopped . | . . . . Potential Cave-ins . | . . . . Cave-ins Triggered . | . . . . Exploration Rate (%) 21 | 4 55 22 3 Regions Visited 3 Branch Regions 1 Pre-discovered Areas . | . . . . Known Exits Taken . | . . . . Unknown Exits Taken 3 | 1 1 1 . Scrap Searched . | . . . . Spaces Dug . | . . . . Terrain Destroyed 42 | . . 42 . Melee . | . . . . Projectile . | . . . . AOE 42 | . . 42 . Terrain Rammed . | . . . . Walls Destroyed . | . . . . Machines Disabled . | . . . . Actions | -11 -10 -9 -9 --------- Run | Yrd Mat Mat Min Total 996 | 46 532 413 5 Wait 28 | . 26 2 . Move 814 | 37 465 312 . Hop . | . . . . Pick Up 17 | 3 7 7 . Fast Attach 13 | 5 3 5 . Attach 12 | 1 1 9 1 Detach 4 | . 2 2 . Swap 7 | . 3 4 . Drop 5 | . 2 3 . Fire 92 | . 21 67 4 Melee . | . . . . Ram . | . . . . Kick . | . . . . Crush . | . . . . Escape Stasis . | . . . . Rewire 2 | . 2 . . Trap . | . . . . Miscellaneous 2 | . . 2 . Route ------- -11/Scrapyard -10/Materials (discovered 3 exits: *Mat / [*Min] / [Sub]) -9/Materials (discovered 2 exits: [*Min] / [*Sto]) -9/Mines History --------- Turn | Location | Event 20 | -11/Scrapyard | Discovered new exit (range 16) 56 | -11/Scrapyard | Entered Materials 78 | -10/Materials | Discovered new exit (range 17) 313 | -10/Materials | Build established: Mutant 602 | -10/Materials | Discovered new exit (range 5) 607 | -10/Materials | Discovered new exit (range 16) 704 | -10/Materials | Repaired Aluminum Leg 716 | -10/Materials | Entered another Materials area 716 | -9/Materials | Evolved 2 slots: Propulsion x2 812 | -9/Materials | Lost 6 parts (1p3n2w) 812 | -9/Materials | Core integrity fell below 50% 860 | -9/Materials | Lost 3 parts (1n2w) 1004 | -9/Materials | Discovered new exit (range 16) 1005 | -9/Materials | Core integrity fell below 20% 1060 | -9/Materials | Discovered new exit (range 15) 1121 | -9/Materials | Build established: Scavenger-Mutant 1281 | -9/Materials | Entered Mines 1289 | -9/Mines | Destroyed by G-34 Mercenary with Small Laser Last Messages --------------- 01207_ O-16 Technician uses terminal to summon reinforcements. 01207_ ALERT: Hostiles spotted, dispatching reinforcements to Terminal M003. 01207_ O-16 Technician locks terminal. 01223_ G-34 Mercenary destroyed. 01225_ R-06 Scavenger collects Lgt. Armor Plating. 01226_ G-34 Mercenary destroyed. 01231_ Acquired 10 matter. 01234_ Dropped Aluminum Leg. 01237_ Acquired Aluminum Leg. 01251_ W-16 Scout sends out distress signal. 01258_ R-06 Scavenger collects Sml. Laser. 01263_ Critical hit (Burn: +37). 01267_ Aluminum Leg destroyed. 01269_ Plasma Cutter destroyed. 01275_ K-01 Serf collects debris. LOCATION=UNKNOWN GOAL=ESCAPE 01283_ Aluminum Leg destroyed. 01284_ G-47 Trooper destroyed. Map ----- +----------------------------------------------------+ | ?????????????????????????????????????????????????? | | ?????????????????????????????????????????????????? | | ?????????????????????????????????????????????????? | | ?????????????????????????????????????????????????? | | ?????????????????????????????????????????????????? | | ?????????????????????????????????????????????????? | | ?????????????????????????????????????????????????? | | ?????????????????????????????????????????????????? | | ?????????????????????????????????????????????????? | | ?????????????????????????????????????????????????? | | ?????????????????????????????????????????????????? | | ?????????????????????????????????????????????????? | | ?????????????????????????????????????????????????? | | ?????????????????????????????????????????????????? | | ?????????????????????????????????????????????????? | | ?????????????????????????????????????????????????? | | ?????????????????????????????????????????????????? | | ?????????????????????????????????????????????????? | | ?????????????????????????????????????????????????? | | ?????????????????????????????????????????????????? | | ??????????????????????##########?????????????????? | | ??????????????????????##########?????????????????? | | ??????????????????????## ##?????????????????? | | ??????????????????????## ##?????????????????? | | ??????????????????????## * ##?????????????????? | | ??????????????????????## @ !%[##?????????????????? | | ??????????????????????## ##?????????????????? | | ??????????????????????## ##?????????????????? | | ??????????????????????## g##?????????????????? | | ??????????????????????##### ###?????????????????? | | ??????????????????????##### ###?????????????????? | | ??????????????????????????? ##??????????????????? | | ???????????????????????????? ##??????????????????? | | ???????????????????????????? ##??????????????????? | | ???????????????????????????? ##??????????????????? | | ???????????????????????????? ##??????????????????? | | ???????????????????????????? #??????????????????? | | ?????????????????????????????????????????????????? | | ?????????????????????????????????????????????????? | | ?????????????????????????????????????????????????? | | ?????????????????????????????????????????????????? | | ?????????????????????????????????????????????????? | | ?????????????????????????????????????????????????? | | ?????????????????????????????????????????????????? | | ?????????????????????????????????????????????????? | | ?????????????????????????????????????????????????? | | ?????????????????????????????????????????????????? | | ?????????????????????????????????????????????????? | | | | | +----------------------------------------------------+ Best States ------------- Heat Dissipation 28 Energy Generation 14 Energy Capacity 160 Matter Stores 300 Matter Capacity 300 Sight Range 16 Terrain Scan Density 10 Evasion (%) 55 Item Schematics ----------------- None Robot Schematics ------------------ None Fabricated ------------ Nothing Repaired ---------- Aluminum Leg | 53% | -10/Materials Studied --------- Lgt. Ion Engine | -9/Materials | Hacked Alien Tech Used ----------------- None Achievements -------------- Let's See Who's Tougher Organ Harvest Challenges ------------ None Game ------ Seed FlyingRainbowReconfigurator Manual? 0 Play Time 00:16:46 Cumulative 3.7 hours Start 2026.02.15 @ 13:02:15 End 2026.02.15 @ 13:18:58 Sessions 1 Manual Loads 0 Difficulty Rogue Special Mode None Game No. 9 Rogue 9 Adventurer 0 Explorer 0 Win Type - Total 0 Types 0/0/0/0/0/0/0/0/0/0 Lore% 11 Gallery% 6 Achievement% 15 Wizard Run 0 Options --------- Layout 0 ASCII 0 Keyboard 1 Movement Numpad Keybinds 0 Fullscreen 2 Font 24/Smallcaps Map View 76x50 Zoom Use 0% Tactical HUD 1 Map Filters NONE Filters NONE Steam 1 RUN: 433c97dd-87e6-48b9-b120-eef97ace13b9